[Event "FIDE Women GP Cyprus 2025"]
[Site "Nicosia"]
[Date "2025.03.21"]
[Round "6.1"]
[White "Dzagnidze, Nana"]
[Black "Harika, Dronavalli"]
[Result "0-1"]
[Annotator "TA"]
[ECO "A13"]
[WhiteElo "2513"]
[BlackElo "2483"]
[PlyCount "130"]
[EventDate "2025.03.10"]
[EventType "tourn"]
[EventCountry "CYP"]
[SourceTitle "playchess.com"]
[Source "ChessBase"]
[SourceQuality "1"]
[TimeControl "40/5400+30:1800+30"]

{[%evp 9,130,12,9,7,0,-15,-22,-17,40,47,52,41,55,47,66,65,67,53,64,58,47,48,54,0,-2,-27,37,41,48,-192,0,0,0,0,0,0,0,0,0,0,0,0,0,-14,0,-13,-9,-9,-11,-27,0,-45,-40,-58,-56,-55,-52,-46,0,-66,-45,-60,-47,-80,-43,-41,-41,-49,-41,-41,-48,-49,-41,-48,-41,-54,-41,-41,-41,-42,-42,-68,-47,-48,-41,-41,-41,-49,-41,-66,-41,-60,-60,-60,-60,-60,-60,-61,-60,-61,-61,-61,-61,-61,-61,-4133,-4133,-4133,-135,-135,-135,-29976,-29977,-29981,-29982,-29982,-29982,-29990,-29986,-29986,-29984,-29983,-29984]} 1. c4 {[%emt 0:00:05]} e6 {[%emt 0:00:15]} 2. Nf3 {[%emt 0:00:19]} d5 {[%emt 0:00:08]} 3. e3 {[%emt 0:00:34]} Nf6 {[%emt 0:01:28]} 4. b3 {[%emt 0:01:11]} Bd6 {[%emt 0:02:01]} 5. Bb2 {[%emt 0:02:32]} O-O {[%emt 0:00:55]} 6. Nc3 {[%emt 0:01:50] A13: English Opening: 1...e6.} Re8 {[%emt 0:04:03]} 7. Qc2 {[%emt 0:06:45] 7.Nb5 is becoming the main line.} c5 {[%emt 0:21:57]} 8. Nb5 {[%emt 0:27:50] [#] The position is equal.} d4 $146 {[%emt 0:28:01]} (8... Bf8 9. Be5 Nc6 10. Bc7 Qd7 11. Ne5 Qe7 12. Bd6 Qd8 13. Bc7 Qe7 14. Bd6 Qd8 {½-½ Rakhmanov,A (2640)-Matlakov,M (2674) RUS-chT 29th 2022 (7.1)}) 9. exd4 $14 {[%emt 0:15:38]} cxd4 {[%emt 0:00:04]} 10. Nxd6 $1 {[%emt 0:00:23]} (10. Bxd4 e5 11. Nxd6 (11. Bxa7 e4 $17) 11... Qxd6 $11) (10. Nfxd4 Bc5 11. b4 Bxb4 $11) (10. Nbxd4 e5 11. Nb5 Bf8 $17) 10... Qxd6 {[%emt 0:00:05]} 11. Nxd4 {[%emt 0:00:49]} (11. Bxd4 e5 12. Be3 Nc6 $11) 11... e5 {[%emt 0:01:11]} 12. Nb5 {[%emt 0:00:11]} Qd8 {[%emt 0:07:04]} 13. c5 {[%emt 0:08:48]} Nc6 {[%emt 0:03:37]} 14. Nd6 {[%emt 0:01:46]} Re7 {[%emt 0:00:09][%cal Be8e7,Be7d7,Bd7d5][%mdl 32]} 15. Bc4 {[%emt 0:05:27]} b6 {[%emt 0:05:28]} 16. Ba3 {[%emt 0:11:41]} (16. O-O $1 $14 bxc5 17. Bxf7+ Rxf7 18. Nxf7 Kxf7 19. Qxc5) 16... Nd4 $11 {[%emt 0:03:27]} 17. Qd3 {[%emt 0:02:11]} (17. Qc1 {simplifies} Rd7 18. O-O bxc5 19. Nxc8 Rxc8 20. Re1) 17... bxc5 {[%emt 0:05:11]} (17... Bg4 $1 $11) 18. Bxc5 $14 {[%emt 0:00:36] And now Nxc8 would win. This pair of bishops is nice.} Rd7 {[%emt 0:01:19]} 19. Nf5 {[%emt 0:10:48]} (19. Nxf7 $1 $14 {was the only good move.} Rxf7 20. Bxd4 (20. Bxf7+ Kxf7 21. Bxd4 a5 $11) 20... exd4 (20... Qxd4 21. Qxd4 exd4 22. Rc1 $14) 21. Bxf7+ Kxf7 22. O-O) 19... Nxf5 $2 {[%emt 0:03:49]} ({Black should try} 19... e4 $19 20. Ne7+ Kh8 (20... Rxe7 21. Qxd4 Rd7 22. Qe5 $16)) 20. Qxf5 $11 {[%emt 0:00:02]} Rd5 {[%emt 0:04:59]} 21. Qf3 {[%emt 0:00:02]} e4 $1 {[%emt 0:00:29]} 22. Qe3 {[%emt 0:00:24]} Ng4 $1 {[%emt 0:00:39]} 23. Qc3 {[%emt 0:00:35] Counterplay Black} (23. Qxe4 $2 Re5 $19) 23... Rxc5 {[%emt 0:01:09]} 24. Bxf7+ {[%emt 0:00:02]} Kxf7 {[%emt 0:00:07]} 25. Qxc5 {[%emt 0:00:03]} Be6 {[%emt 0:03:37] Active counter play!} 26. O-O {[%emt 0:00:42]} Qxd2 {[%emt 0:00:45]} 27. f3 {[%emt 0:01:46]} exf3 {[%emt 0:00:36]} 28. Rxf3+ {[%emt 0:00:11]} Nf6 {[%emt 0:00:32]} (28... Kg6 {feels hotter.} 29. Qc3 Rd8 30. Raf1 Qxc3 31. Rxc3 Nf6) 29. Raf1 {[%emt 0:01:16]} Qd5 {[%emt 0:00:28] Really sharp!} (29... Qxa2 $2 30. Qc7+ Kg8 31. Rg3 $18) 30. Qf2 {[%emt 0:00:29]} Kg8 $36 {[%emt 0:00:35][%mdl 2048] Black fights for an advantage.} 31. Kh1 {[%emt 0:00:02] White is weak on the light squares} a5 {[%emt 0:00:23]} 32. Qg3 {[%emt 0:00:51]} Ne4 {[%emt 0:00:38]} 33. Qf4 {[%emt 0:00:02]} Nf6 {[%emt 0:00:32]} (33... g5 $15 34. Qc1 Rd8) 34. Re3 {[%emt 0:00:50]} (34. Qg3 $11 Kh8 35. Rd3) 34... Bf7 {[%emt 0:00:29][%cal Oa5a4]} 35. Re5 {[%emt 0:00:33]} Qd3 {[%emt 0:00:17]} 36. Qf5 {[%emt 0:00:45]} Qxf5 {[%emt 0:00:29]} 37. Rfxf5 {[%emt 0:00:05]} a4 {[%emt 0:00:33]} 38. bxa4 {[%emt 0:00:20]} Rxa4 {[%emt 0:00:09][%cal Oa4d4]} 39. Ra5 {[%emt 0:00:26]} Rxa2 {[%emt 0:00:40]} 40. Rxa2 {[%emt 0:00:10]} Bxa2 {[%emt 0:00:07]} 41. Ra5 {[%emt 0:30:25]} Bd5 {[%emt 0:30:06]} 42. Ra7 {[%emt 0:00:00]} h6 {[%emt 0:00:00]} 43. Kg1 {[%emt 0:00:00]} Kh7 {[%emt 0:00:00]} 44. Kf2 {[%emt 0:00:00]} Kg6 {[%emt 0:00:00]} 45. Rc7 {[%emt 0:00:00]} Be6 {[%emt 0:00:00]} 46. Ra7 {[%emt 0:00:00]} Nd5 {[%emt 0:00:00]} 47. Kf3 {[%emt 0:00:00]} Kf6 {[%emt 0:00:00]} 48. Ra6 {[%emt 0:00:00]} Kf5 {[%emt 0:00:00]} 49. Ra5 {[%emt 0:00:00]} g5 {[%emt 0:00:00]} 50. Rc5 {[%emt 0:00:00]} h5 {[%emt 0:00:00]} 51. Ra5 {[%emt 0:00:00]} Ke5 {[%emt 0:00:00]} 52. Kf2 {[%emt 0:00:00]} Bf5 {[%emt 0:00:00]} 53. Ra8 {[%emt 0:00:00]} Be4 {[%emt 0:00:00]} 54. Re8+ {[%emt 0:00:00]} Kf5 {[%emt 0:00:00]} 55. Rf8+ {[%emt 0:00:00]} Nf6 {[%emt 0:00:00]} 56. g3 {[%emt 0:03:06]} Bc6 {[%emt 0:00:00]} 57. Kg1 $2 {[%emt 0:00:25][%mdl 8192] [#]} (57. Rf7 $15) 57... Be8 $1 $19 {[%emt 0:00:00] ( -> ...Kg6)} 58. g4+ {[%emt 0:05:01] [#]} hxg4 $2 {[%emt 0:00:00]} (58... Kxg4 $2 {too greedy.} 59. Rxf6 Ba4 60. Kf2 $18) (58... Kg6 $1 $19 {[%cal Rg6g7] is more deadly. ( -> ...Kg7)} 59. h4 gxh4 (59... hxg4 $2 60. hxg5 Kxg5 61. Kh2 $19) 60. gxh5+ Kg7 (60... Kxh5 61. Rxf6 Bg6 62. Kh2 $11) (60... Nxh5 61. Rxe8 Kf5 62. Ra8 $11)) 59. Kg2 {[%emt 0:00:08]} Kg6 {[%emt 0:00:00]} 60. Kg3 $2 {[%emt 0:00:08][%mdl 8192]} (60. Kf2 $17 Kg7 61. Rxe8 Nxe8 62. Kg3) 60... Kg7 {[%emt 0:00:00] Black mates.} 61. Rxf6 {[%emt 0:01:26]} Kxf6 {[%emt 0:00:00]} 62. Kxg4 {[%emt 0:00:01]} Bd7+ {[%emt 0:00:00]} 63. Kh5 {[%emt 0:00:09]} Kf5 {[%emt 0:00:00]} 64. Kh6 {[%emt 0:01:09]} Kg4 {[%emt 0:00:00]} 65. Kg6 {[%emt 0:00:13]} Kh4 {[%emt 0:00:00] Weighted Error Value: White=0.34/Black=0.20 (precise)   Loses game:     	White=3     	---        Missed win:     	---       	Black=1      Mistake:       	White=2     	Black=3      Inaccurate:     	White=3     	Black=2      OK:         	White=18    	Black=20     Best:        	White=1     	Black=3      Strong:       	White=1     	Black=3} 0-1

[Event "FIDE Women GP Cyprus 2025"]
[Site "Nicosia"]
[Date "2025.03.21"]
[Round "6.2"]
[White "Muzychuk, Mariya"]
[Black "Paehtz, Elisabeth"]
[Result "1-0"]
[Annotator "TA"]
[ECO "B90"]
[WhiteElo "2490"]
[BlackElo "2424"]
[PlyCount "65"]
[EventDate "2025.03.10"]
[EventType "tourn"]
[EventCountry "CYP"]
[SourceTitle "playchess.com"]
[Source "ChessBase"]
[SourceQuality "1"]
[TimeControl "40/5400+30:1800+30"]

{[%evp 12,65,20,18,15,16,8,-4,20,-4,-2,-20,17,-12,22,-8,-10,-23,50,42,47,3,61,28,86,65,98,109,166,167,171,164,199,210,206,164,176,195,200,187,269,150,179,159,257,247,231,199,358,353,385,372,377,376,373,364]} 1. e4 {[%emt 0:00:03]} c5 {[%emt 0:00:05]} 2. Nf3 {[%emt 0:00:14]} d6 {[%emt 0:00:04]} 3. d4 {[%emt 0:00:18]} cxd4 {[%emt 0:00:05]} 4. Nxd4 {[%emt 0:00:03]} Nf6 {[%emt 0:00:04]} 5. Nc3 {[%emt 0:00:06]} a6 {[%emt 0:00:02]} 6. h3 {[%emt 0:00:25]} e5 {[%emt 0:00:05]} 7. Nb3 {[%emt 0:00:40] is the new trend.} Be7 {[%emt 0:00:08] B90: Sicilian Najdorf: Unusual White 6th moves, 6 Be3 Ng4 and 6 Be3 e5.} 8. g4 {[%emt 0:01:05]} h6 {[%emt 0:00:22]} 9. Be3 {[%emt 0:01:20]} Nbd7 {[%emt 0:00:08] The position is equal.} 10. Bg2 {[%emt 0:03:07]} Nb6 $146 {[%emt 0:07:27]} ({Predecessor:} 10... b5 11. O-O Bb7 12. f4 b4 13. Nd5 Nxd5 14. exd5 O-O 15. a3 bxa3 16. Rxa3 a5 {0-1 Karthikeyan,M (2530)-Bok,B (2598) London Classic op 8th 2016 (5)}) 11. Qd3 {[%emt 0:03:21] Inhibits Nc4.} Qc7 {[%emt 0:05:14]} 12. Nd2 {[%emt 0:04:14]} Bd7 {[%emt 0:02:02]} 13. Bxb6 {[%emt 0:09:08]} Qxb6 {[%emt 0:00:03]} 14. Nc4 {[%emt 0:00:12]} Qc6 {[%emt 0:05:35]} (14... Qc5 $11) 15. O-O-O $14 {[%emt 0:10:35][%cal Rc4d6]} O-O {[%emt 0:00:15]} 16. Ne3 {[%emt 0:13:06]} Qc5 {[%emt 0:03:59]} (16... b5 $11) 17. Qe2 {[%emt 0:01:56]} Rfc8 {[%emt 0:23:54] [#]} (17... b5 $11 {remains equal.}) 18. h4 $1 $16 {[%emt 0:02:25] White leaves nothing to chance now.} g6 {[%emt 0:01:02]} 19. Bh3 {[%emt 0:08:00]} Bf8 {[%emt 0:08:42]} (19... Bb5 $16 20. Qf3 Rc7) 20. g5 $18 {[%emt 0:07:34]} Bxh3 {[%emt 0:00:05]} 21. Rxh3 {[%emt 0:01:15]} Nh5 {[%emt 0:00:05] [#]} 22. Ncd5 {[%emt 0:01:02]} Rc6 {[%emt 0:04:49]} 23. Kb1 {[%emt 0:10:49] aiming for Qf3.} Rac8 {[%emt 0:01:47]} 24. c3 {[%emt 0:00:00][%csl Od5] Strong Square White (d5)} b5 {[%emt 0:07:42]} 25. gxh6 {[%emt 0:02:17]} b4 {[%emt 0:03:48]} (25... Bxh6 $142 26. Nf5 Kh7) 26. Ng4 {[%emt 0:04:35] Excellent horsemanship.} (26. cxb4 $2 Qc1+ 27. Rxc1 Rxc1#) (26. Nxb4 $18 Rb6 27. Ned5 (27. Nxa6 Qxc3 28. Nd5 Rxb2+ 29. Qxb2 Qxh3 $17)) 26... bxc3 {[%emt 0:02:37]} 27. Rxc3 {[%emt 0:00:47]} Qb5 {[%emt 0:01:08]} (27... Qa7 $16 28. Rxc6 Rxc6 29. Ngf6+ Nxf6 30. Nxf6+ Kh8) 28. Qxb5 {[%emt 0:04:25]} axb5 {[%emt 0:00:07]} 29. Rf3 {[%emt 0:00:23]} Rc4 $2 {[%emt 0:01:54]} (29... Nf4 30. Nxf4 exf4) 30. Nb6 {[%emt 0:06:21] White is winning.} Rxe4 {[%emt 0:06:16]} 31. Nxc8 {[%emt 0:00:05]} Rxg4 {[%emt 0:00:09]} 32. h7+ {[%emt 0:00:43]} ({But not} 32. Nxd6 f6 33. Nxb5 Kh7) 32... Kxh7 {[%emt 0:00:05]} 33. Rxf7+ {[%emt 0:00:02] Weighted Error Value: White=0.15 (very precise) /Black=0.41  Mistake:       	White=1     	Black=7      Inaccurate:     	White=3     	Black=2      OK:         	White=11    	Black=5      Best:        	White=2     	Black=2      Strong:       	White=1     	---} ({Less strong is} 33. Nxd6 Bxd6 34. Rxd6 Kg7 $16) 1-0

[Event "FIDE Women GP Cyprus 2025"]
[Site "Nicosia"]
[Date "2025.03.21"]
[Round "6.3"]
[White "Goryachkina, Aleksandra"]
[Black "Badelka, Olga"]
[Result "1/2-1/2"]
[Annotator "TA"]
[ECO "C65"]
[WhiteElo "2548"]
[BlackElo "2429"]
[PlyCount "118"]
[EventDate "2025.03.10"]
[EventType "tourn"]
[EventCountry "CYP"]
[SourceTitle "playchess.com"]
[Source "ChessBase"]
[SourceQuality "1"]
[TimeControl "40/5400+30:1800+30"]

{[%evp 9,118,5,7,-3,0,2,17,13,8,29,41,22,42,45,47,48,48,0,21,0,0,0,0,0,8,8,14,0,0,0,13,13,14,14,14,14,14,14,14,13,13,13,13,15,14,0,4,7,30,17,90,78,77,65,38,12,13,0,0,0,1,1,4,4,54,58,52,0,58,60,132,134,125,83,77,83,86,75,76,73,83,84,87,81,68,69,64,60,65,33,46,19,36,25,19,0,26,0,0,0,0,0,0,0,0,0,0,0,0,0,0]} 1. e4 {[%emt 0:00:09]} e5 {[%emt 0:00:05]} 2. Nf3 {[%emt 0:00:21]} Nc6 {[%emt 0:00:06]} 3. Bb5 {[%emt 0:00:16]} Nf6 {[%emt 0:00:07]} 4. d3 {[%emt 0:00:36]} Bc5 {[%emt 0:00:07]} 5. c3 {[%emt 0:00:30]} O-O {[%emt 0:00:09]} 6. Bg5 {[%emt 0:00:56] C65: Ruy Lopez: Berlin Defence (3...Nf6), unusual lines and 4 0-0 Bc5.} h6 {[%emt 0:00:39]} 7. Bh4 {[%emt 0:00:42]} Be7 {[%emt 0:00:38]} 8. Bg3 {[%emt 0:06:35][%cal Ob5c6]} d6 {[%emt 0:01:02]} 9. O-O {[%emt 0:00:53]} Nh7 $146 {[%emt 0:09:33]} ({Predecessor:} 9... a6 10. Ba4 Nh5 11. Nbd2 Nxg3 12. hxg3 Nb8 13. d4 Bf6 14. Re1 g6 15. Nf1 h5 {½-½ Rapport,R (2715)-Vidit,S (2721) Tashkent UzChess Masters 2024 (6)}) 10. Re1 {[%emt 0:07:07]} f5 {[%emt 0:04:23]} 11. exf5 {[%emt 0:02:21]} Bxf5 {[%emt 0:00:49]} 12. d4 {[%emt 0:01:07]} e4 {[%emt 0:16:10]} 13. Nfd2 {[%emt 0:02:40]} d5 {[%emt 0:00:24]} 14. f3 {[%emt 0:00:44]} exf3 {[%emt 0:02:28]} 15. Nxf3 {[%emt 0:00:14]} Bd6 {[%emt 0:03:24]} 16. Bxd6 {[%emt 0:03:23]} Qxd6 {[%emt 0:00:05]} 17. Nbd2 {[%emt 0:00:50]} Nf6 {[%emt 0:02:22]} 18. Bxc6 {[%emt 0:10:42]} bxc6 {[%emt 0:01:16]} 19. Ne5 {[%emt 0:06:57]} c5 {[%emt 0:02:49]} 20. Nb3 {[%emt 0:03:20]} Ne4 {[%emt 0:02:19]} 21. Nxc5 {[%emt 0:03:24]} Nxc5 {[%emt 0:00:08]} 22. dxc5 {[%emt 0:00:05]} Qxc5+ {[%emt 0:00:05]} 23. Qd4 {[%emt 0:00:20]} Qb6 {[%emt 0:10:18]} 24. Qxb6 {[%emt 0:09:30]} axb6 {[%emt 0:00:56]} 25. Nc6 {[%emt 0:00:30]} Be4 {[%emt 0:01:38] [#]} 26. c4 $1 {[%emt 0:01:01]} Kh7 {[%emt 0:04:21]} 27. Nb4 {[%emt 0:01:27]} Rf5 {[%emt 0:09:29]} 28. Rad1 {[%emt 0:01:43][%cal Rc4d5]} Rg5 {[%emt 0:06:30]} 29. Rd2 {[%emt 0:01:06][%cal Rc4d5]} Ra5 {[%emt 0:02:01]} (29... c6 $11) 30. a3 {[%emt 0:02:37]} h5 {[%emt 0:03:18]} 31. h4 {[%emt 0:04:29]} Rf5 {[%emt 0:08:17]} 32. Nc6 {[%emt 0:02:26]} Rc5 {[%emt 0:00:27]} 33. Nd4 {[%emt 0:00:52]} Rf6 {[%emt 0:01:37]} 34. cxd5 {[%emt 0:02:00]} Bxd5 {[%emt 0:00:04]} 35. b4 $36 {[%emt 0:00:38][%mdl 2048] White has the initiative.} Rc4 {[%emt 0:00:05]} 36. Re5 {[%emt 0:00:15][%csl LRd5,LRh5]} c6 {[%emt 0:08:33]} (36... Bf7 $11) 37. Rxh5+ $14 {[%emt 0:01:55]} Kg8 {[%emt 0:00:04]} 38. Nf5 {[%emt 0:07:23]} (38. b5 $14) 38... g6 {[%emt 0:01:31]} (38... Re4 $11 39. Nd4 g6) 39. Ne7+ {[%emt 0:00:07]} Kf7 {[%emt 0:01:02] [#]} ({Better is} 39... Kg7 $14 40. Rg5 Bf7) 40. Rh7+ $1 $16 {[%emt 0:01:21]} Ke6 {[%emt 0:00:03]} 41. Nc8 {[%emt 0:38:44]} Rc1+ {[%emt 0:05:33]} 42. Kh2 {[%emt 0:00:00] White is more active.} Rff1 {[%emt 0:00:42]} 43. Nxb6 {[%emt 0:00:00]} Rh1+ {[%emt 0:00:07]} 44. Kg3 {[%emt 0:00:00]} Rc3+ {[%emt 0:00:04]} 45. Kf2 {[%emt 0:00:00]} Rxa3 {[%emt 0:00:32]} 46. Re2+ {[%emt 0:00:00]} (46. Nxd5 {simplifies} cxd5 47. Rb2 Raa1 48. Rh8) 46... Kf5 {[%emt 0:05:03]} 47. Nxd5 {[%emt 0:00:00]} cxd5 $14 {[%emt 0:00:03][%mdl 4096] Endgame KRR-KRR. White is a pawn up.} 48. Rb2 {[%emt 0:00:00] and b5 would now be decisive Dodges Rb3} Raa1 {[%emt 0:04:03]} 49. Rf7+ {[%emt 0:00:00]} Ke6 {[%emt 0:05:42]} 50. Rf3 {[%emt 0:00:00]} Rab1 {[%emt 0:07:04]} 51. Rxb1 {[%emt 0:00:00]} Rxb1 {[%emt 0:00:04] KR-KR. White is a pawn up.} 52. Rf4 {[%emt 0:00:00]} Ke5 {[%emt 0:00:44]} 53. g3 {[%emt 0:02:10]} Rb2+ {[%emt 0:02:02] The position is equal.} 54. Kf1 {[%emt 0:00:05]} d4 {[%emt 0:02:56][%cal Bd5d4,Bd4d3][%mdl 32]} 55. Rg4 {[%emt 0:00:55]} Rxb4 {[%emt 0:00:44]} 56. Rxg6 {[%emt 0:00:23]} Ke4 {[%emt 0:00:09]} 57. Ke2 {[%emt 0:02:02]} d3+ {[%emt 0:00:49]} 58. Kd2 {[%emt 0:01:10] Intending Rg4+ and mate.} Rb2+ {[%emt 0:00:04]} 59. Kd1 {[%emt 0:02:24]} Rb1+ {[%emt 0:00:20] Weighted Error Value: White=0.08 (flawless) /Black=0.10 (very precise)   Mistake:       	White=1     	Black=4      Inaccurate:     	White=6     	Black=1      OK:         	White=22    	Black=23     Best:        	White=4     	Black=7      Strong:       	White=1     	---} (59... Ke3 $5 60. Re6+ $8 Kf3 $11) 1/2-1/2

[Event "FIDE Women GP Cyprus 2025"]
[Site "Nicosia"]
[Date "2025.03.21"]
[Round "6.4"]
[White "Muzychuk, Anna"]
[Black "Zhu, Jiner"]
[Result "1/2-1/2"]
[Annotator "TA"]
[ECO "B52"]
[WhiteElo "2516"]
[BlackElo "2514"]
[PlyCount "104"]
[EventDate "2025.03.10"]
[EventType "tourn"]
[EventCountry "CYP"]
[SourceTitle "playchess.com"]
[Source "ChessBase"]
[SourceQuality "1"]
[TimeControl "40/5400+30:1800+30"]

{[%evp 10,104,27,20,22,26,33,35,33,33,26,21,14,41,31,27,39,20,38,31,35,38,37,12,11,5,7,0,0,0,0,0,0,0,0,0,0,0,0,0,0,0,0,0,0,0,0,0,0,0,0,0,0,0,8,2,21,5,10,0,0,0,0,-20,-3,-12,0,0,0,0,0,0,0,0,0,0,0,0,0,0,0,0,0,0,0,0,0,0,0,0,0,0,0,0,0,0,0]} 1. e4 {[%emt 0:00:04]} c5 {[%emt 0:00:14]} 2. Nf3 {[%emt 0:00:08]} d6 {[%emt 0:00:06]} 3. Bb5+ {[%emt 0:00:10]} Bd7 {[%emt 0:00:13]} 4. Bxd7+ {[%emt 0:00:09]} Qxd7 {[%emt 0:00:04]} 5. c4 {[%emt 0:00:06]} Nf6 {[%emt 0:00:18]} 6. Nc3 {[%emt 0:00:08]} Nc6 {[%emt 0:00:07] B52: Sicilian: Moscow Variation with 3...Bd7.} 7. d4 {[%emt 0:00:18]} Qg4 {[%emt 0:00:18] [#] Hoping for ...cxd4.} 8. d5 {[%emt 0:02:04]} Nd4 {[%emt 0:00:06] White is slightly better.} 9. Nxd4 {[%emt 0:00:41]} Qxd1+ {[%emt 0:00:07]} 10. Kxd1 {[%emt 0:01:49]} cxd4 {[%emt 0:00:10]} 11. Nb5 {[%emt 0:00:09]} Rc8 {[%emt 0:00:05] Wards off Nc7+} 12. Ke2 {[%emt 0:01:23]} Nxe4 {[%emt 0:06:31]} 13. f3 {[%emt 0:01:50] White sacrificed a pawn} Nf6 $146 {[%emt 0:00:08]} (13... d3+ 14. Ke3 Nf6 15. Kxd3 a6 16. Nc3 g6 17. a4 Bg7 18. a5 Nd7 19. b3 e6 {0-1 Menke,J (2481)-Degerhammar,R (2475) ICCF GMN/042 email 2014}) 14. b3 {[%emt 0:01:16]} (14. Nxd4 $2 Rxc4 15. Kd3 Rc5 $19) 14... a6 {[%emt 0:01:17]} 15. Nxd4 {[%emt 0:00:09]} Kd7 {[%emt 0:00:46]} 16. a4 {[%emt 0:15:04]} e5 {[%emt 0:05:15] The position is equal.} 17. dxe6+ {[%emt 0:00:08]} fxe6 {[%emt 0:00:05]} 18. Bd2 {[%emt 0:16:05]} d5 {[%emt 0:03:44]} 19. cxd5 {[%emt 0:01:47]} Nxd5 {[%emt 0:00:09]} 20. Rac1 {[%emt 0:02:50]} Bc5 {[%emt 0:02:47]} 21. Nc2 {[%emt 0:00:48]} Rc6 {[%emt 0:03:57]} 22. Ne1 {[%emt 0:03:01]} Rhc8 {[%emt 0:01:12]} 23. Nd3 {[%emt 0:00:09]} Bd6 {[%emt 0:00:35] Repels Ne5+} 24. Rxc6 {[%emt 0:07:57]} Rxc6 {[%emt 0:00:44]} 25. g3 {[%emt 0:01:58]} Rc2 {[%emt 0:10:07]} 26. Ra1 {[%emt 0:03:45]} h5 {[%emt 0:08:18]} 27. Kd1 {[%emt 0:01:56]} Rc6 {[%emt 0:02:44]} 28. Ke2 {[%emt 0:01:57]} Rc2 {[%emt 0:01:51]} 29. Kd1 {[%emt 0:00:06]} Rc6 {[%emt 0:00:08]} 30. Ke2 {[%emt 0:00:03]} Ne7 {[%emt 0:08:16]} 31. Rc1 {[%emt 0:03:25]} Nf5 {[%emt 0:00:48]} 32. Bc3 {[%emt 0:02:53] Prevents Nd4+} g5 {[%emt 0:09:18]} 33. Kd2 {[%emt 0:10:36]} Rc8 {[%emt 0:07:26]} 34. Rf1 {[%emt 0:06:23]} h4 {[%emt 0:04:59]} 35. g4 {[%emt 0:07:24]} Ne3 {[%emt 0:00:07]} 36. Re1 {[%emt 0:01:15]} Nd5 {[%emt 0:08:14]} (36... Bxh2 $2 {perishes.} 37. Rxe3 Bd6 38. Re1 $18) 37. Be5 {[%emt 0:00:34]} Bb4+ {[%emt 0:03:53]} 38. Nxb4 {[%emt 0:00:10]} Nxb4 $11 {[%emt 0:00:04][%mdl 4096] Endgame KRB-KRN} 39. Re4 {[%emt 0:01:30]} Nd5 {[%emt 0:02:10]} 40. Rc4 {[%emt 0:04:50]} Rf8 {[%emt 0:02:26]} 41. Ke2 {[%emt 0:09:07]} Ke7 {[%emt 0:01:20]} 42. Rc5 {[%emt 0:02:24]} Rd8 {[%emt 0:01:47]} 43. Rc1 {[%emt 0:05:24]} Kf7 {[%emt 0:01:12]} 44. Rc4 {[%emt 0:01:14]} Kg6 {[%emt 0:00:48]} 45. Kf2 {[%emt 0:03:06]} Kf7 {[%emt 0:05:35]} 46. Ke2 {[%emt 0:03:31]} Kg6 {[%emt 0:00:41]} 47. Kf2 {[%emt 0:01:06]} Ra8 {[%emt 0:00:35]} 48. Ke2 {[%emt 0:00:21]} Rf8 {[%emt 0:00:54]} 49. Rc1 {[%emt 0:01:53]} Rd8 {[%emt 0:00:26]} 50. Rc4 {[%emt 0:01:07]} Rf8 {[%emt 0:00:20]} 51. Rc1 {[%emt 0:00:16]} Rd8 {[%emt 0:00:06]} 52. Rc4 {[%emt 0:00:07]} Rf8 {[%emt 0:00:04] Weighted Error Value: White=0.03 (flawless) /Black=0.02 (flawless)   OK:         	White=23    	Black=22     Best:        	White=1     	---} 1/2-1/2